Cogmind - Beta 11.1 @@@ ROGUE MODE // 2022.08.16 @ 14:40:56 Player: Blitzeker Result: Destroyed by Cetus Guard with Advanced KE Penetrator Performance ------------- Evolutions (4) 2000 Regions Visited (8) 1600 Robots Destroyed (35) 175 Value Destroyed (546) 546 Prototype IDs (4) 80 Alien Tech Used (0) 0 Bonus (41) 41 TOTAL SCORE: 4442 Bonus ------- High Alert Combat Kills 57 Friendly Fire -16 Cogmind --------- Core Integrity 0/850 Matter 270/300 Energy 61/100 System Corruption 0% Temperature Cool (0) Movement Core (150) Ox2 Location -6/Cetus Parts ------- > --- POWER (1) -------- (None) > --- PROPULSION (6) --- (None) > --- UTILITY (6) ------ Visual Processing Unit Improved Sensor Array Signal Interpreter Improved Melee Analysis Suite Launcher Guidance Computer Launcher Guidance Computer > --- WEAPON (2) ------- Scatter Rocket Array > --- INVENTORY (5) ---- Rocket Array Rocket Array Peak State ------------ > --- POWER ------------ Light Ion Engine > --- PROPULSION ------- VTOL Module VTOL Module > --- UTILITY ---------- Power Amplifier Structural Scanner Signal Interpreter Improved Melee Analysis Suite Hacking Suite System Shield > --- WEAPON ----------- Advanced EMP Blaster Powered Hammer > --- INVENTORY -------- Light Fission Core Improved Light Armor Plating Rocket Array Rocket Array Scatter Rocket Array [Rating: 32] Favorites ----------- Power Light Ion Engine Engine Light Ion Engine Power Core Light Nuclear Core Propulsion Flight Unit Treads Light Treads Leg Aluminum Leg Hover Unit Gravmag System Flight Unit Flight Unit Utility Signal Interpreter Device Structural Scanner Processor Signal Interpreter Hackware System Shield Protection Improved Light Armor Plating Weapon Light Assault Rifle Energy Gun Small Laser Ballistic Gun Light Assault Rifle Launcher Rocket Launcher Special Weapon Mining Laser Impact Weapon Powered Hammer Slashing Weapon Chainsword Build | -11 -10 -9 -9 -8 -7 -6 -6 -6 ------- Run | Scr Mat Mat Min Mat Fac Fac Ext Cet Slots Evolved 8 | . . 2 . 2 2 2 . . Power . | . . . . . . . . . Propulsion 4 | . . 2 . . 2 . . . Utility 4 | . . . . 2 . 2 . . Weapon . | . . . . . . . . . Parts Attached 62 | 4 3 3 4 9 18 8 10 3 Power 6 | . . . . 1 3 1 1 . Engine 5 | . . . . 1 2 1 1 . Core 1 | . . . . . 1 . . . Reactor . | . . . . . . . . . Propulsion 18 | 2 1 2 2 4 4 . 3 . Treads 2 | . . 2 . . . . . . Leg 2 | 2 . . . . . . . . Wheel . | . . . . . . . . . Hover 3 | . . . . . . . 3 . Flight 11 | . 1 . 2 4 4 . . . Utility 14 | . 1 1 . 2 2 3 3 2 Device 5 | . . . . 1 1 1 1 1 Storage . | . . . . . . . . . Processor 6 | . 1 1 . . . 1 2 1 Hackware 2 | . . . . 1 . 1 . . Protection 1 | . . . . . 1 . . . Artifact . | . . . . . . . . . Weapon 24 | 2 1 . 2 2 9 4 3 1 Energy Gun 3 | 1 1 . . . 1 . . . Energy Cannon . | . . . . . . . . . Ballistic Gun 7 | 1 . . 2 1 3 . . . Ballistic Cannon . | . . . . . . . . . Launcher 7 | . . . . 1 3 2 . 1 Special Weapon 1 | . . . . . 1 . . . Impact Weapon 4 | . . . . . . 1 3 . Slashing Weapon 2 | . . . . . 1 1 . . Piercing Weapon . | . . . . . . . . . Special Melee Weapon . | . . . . . . . . . Unidentified Prototypes 4 | . . . . . 2 2 . . Parts Lost 19 | . . . . 2 9 2 5 1 Power 3 | . . . . . 2 . 1 . Propulsion 13 | . . . . 2 6 2 3 . Utility 3 | . . . . . 1 . 1 1 Weapon . | . . . . . . . . . Highest Loss Streak 5 | . . . . 2 3 2 5 1 To Critical Strikes . | . . . . . . . . . Average Slot Usage (%) 63 | . 60 74 78 82 86 56 46 30 Engine 2 | . . . . 4 5 4 1 . Treads 3 | . . 22 20 4 . . . . Hover 2 | . . . . . . . 6 . Flight 13 | . 7 11 14 29 35 9 . . Device 6 | . . . . 4 11 8 7 3 Processor 14 | . 10 19 22 18 9 13 14 27 Hackware 7 | . . . . 3 7 13 12 . Energy Gun 2 | . 14 11 9 . . . . . Ballistic Gun 5 | . 14 11 12 17 7 . . . Impact Weapon 1 | . . . . . . 4 2 . Slashing Weapon 1 | . . . . . 4 1 . . Naked Turns . | . . . . . . . . . Heaviest Build 14 | 3 3 3 3 8 14 8 8 1 Greatest Support 25 | 3 4 4 20 17 25 8 23 3 Greatest Overweight (x) 2 | . . . . . 2 1 1 . Average Overweight (x) . | . . . . . . . . . Largest Inventory Capacity 5 | 5 5 5 5 5 5 5 5 5 Average Capacity 5 | 5 5 5 5 5 5 5 5 5 Most Carried 5 | 5 5 5 5 5 5 5 5 5 Average Carried 4 | 3 4 3 4 4 4 4 4 4 Final Capacity 5 | 5 5 5 5 5 5 5 5 5 Final Carried 5 | 5 5 4 4 5 4 5 5 2 Class Distribution -------------------- 30% | Hacker-Mutant 24% | Mutant 19% | Scavenger-Scout 14% | Scavenger-Sprinter 5% | Scavenger-Mutant 4% | Hacker-Sprinter Dominant Class ---------------- Mutant | -10/Materials Mutant | -9/Materials Mutant | -9/Mines Scavenger-Sprinter | -8/Materials Scavenger-Scout | -7/Factory Hacker-Sprinter | -6/Factory Hacker-Mutant | -6/Extension Mutant | -6/Cetus Resources | -11 -10 -9 -9 -8 -7 -6 -6 -6 ----------- Run | Scr Mat Mat Min Mat Fac Fac Ext Cet Matter Collected 845 | 261 . 57 65 62 210 72 118 . Remotely . | . . . . . . . . . Salvage Created 1114 | 61 . 10 37 157 283 115 451 . Parts 61 | 7 . 3 3 16 17 2 13 . Haulers Intercepted 6 | . . . . . 2 . 4 . Recyclers Shooed 2 | 1 . . . . 1 . . . Parts Field Recycled . | . . . . . . . . . Retrieved Matter . | . . . . . . . . . Parts Self-Destructed . | . . . . . . . . . Prevented . | . . . . . . . . . Kills | -11 -10 -9 -9 -8 -7 -6 -6 -6 ------- Run | Scr Mat Mat Min Mat Fac Fac Ext Cet Combat Hostiles Destroyed 17 | . . . 2 8 5 1 1 . Melee 1 | . . . . . . . 1 . Guns 8 | . . . 2 6 . . . . AOE 7 | . . . . 2 5 . . . Classes Destroyed 9 | 2 . 1 1 1 3 . 1 . Worker 1 | . . . . . 1 . . . Builder 3 | . . . . . 1 2 . . Tunneler 3 | 1 . . . . 1 1 . . Hauler 6 | . . . . . 2 . 4 . Recycler 2 | 1 . . . . 1 . . . Watcher 3 | . . 1 . . . 1 1 . Swarmer 15 | . . . 2 7 5 1 . . Sentry 1 | . . . . 1 . . . . Programmer 1 | . . . . . . . 1 . Best Kill Streak 6 | 1 . 1 2 6 5 3 1 . Combat Bots Only 6 | . . . 2 6 5 1 1 . Max Kills in Single Turn 3 | 1 . 1 1 2 3 1 1 . Gunslinging 1 | . . . . 1 . . . . Exploded 3 | . . . . 2 3 . . . Melee 1 | . . . . . . . 1 . Uniques/NPCs Destroyed . | . . . . . . . . . Combat | -11 -10 -9 -9 -8 -7 -6 -6 -6 -------- Run | Scr Mat Mat Min Mat Fac Fac Ext Cet Damage Taken 2206 | . 12 280 17 214 452 125 600 506 Core 1084 | . 12 65 . 35 114 61 320 477 Absorbed by Shields . | . . . . . . . . . Core Remaining (%) 90 | 100 95 . 83 93 83 . . . Volleys Fired 37 | 7 . 4 4 17 5 . . . Largest 2 | 2 . 2 2 2 2 . . . Hottest 120 | 60 . 60 60 50 120 . . . Shots Fired 70 | 14 . 8 8 34 6 . . . Gun 64 | 14 . 8 8 33 1 . . . Cannon . | . . . . . . . . . Launcher 4 | . . . . 1 3 . . . Special 2 | . . . . . 2 . . . Kinetic 49 | 7 . 4 4 33 1 . . . Thermal 17 | 7 . 4 4 . 2 . . . Explosive 4 | . . . . 1 3 . . . Electromagnetic . | . . . . . . . . . Robot Hit Streak 9 | 2 . 7 4 9 6 . . . Robot Miss Streak 3 | 2 . 1 3 3 1 . . . Penetration Max . | . . . . . . . . . Secondary Targets 1 | . . . . 1 . . . . Max Gunslinging Chain 1 | . . . . 1 . . . . Shots Hit Robots 75 | 8 . 7 4 22 11 6 17 . Core Hits 36 | 3 . 3 3 12 11 1 3 . Critical Kills 1 | . . . . . . . 1 . Critical Parts Destroyed 5 | . . . . . . 2 3 . Critical Strikes 6 | . . . . . . 2 4 . Smash 6 | . . . . . . 2 4 . Melee Attacks 47 | . . . . . 12 17 18 . Impact 33 | . . . . . . 15 18 . Slashing 14 | . . . . . 12 2 . . Piercing . | . . . . . . . . . Sneak Attacks 15 | . . . . . 6 2 7 . Combat Hostiles 1 | . . . . . . . 1 . Follow-up Attacks . | . . . . . . . . . Damage Inflicted 2825 | 97 . 83 62 239 901 390 1053 . Guns 412 | 97 . 83 62 170 . . . . Cannons . | . . . . . . . . . Explosions 395 | . . . . 69 326 . . . Melee 2018 | . . . . . 575 390 1053 . Ramming . | . . . . . . . . . Kinetic 313 | 53 . 51 39 170 . . . . Thermal 99 | 44 . 32 23 . . . . . Explosive 395 | . . . . 69 326 . . . Electromagnetic . | . . . . . . . . . Impact 1391 | . . . . . . 338 1053 . Slashing 627 | . . . . . 575 52 . . Piercing . | . . . . . . . . . Highest Corruption . | . . . . . . . . . Average Corruption . | . . . . . . . . . Corruption Purged . | . . . . . . . . . Corruption Blocked . | . . . . . . . . . Overload Shots . | . . . . . . . . . Overflow Damage 698 | . . . . . 163 256 279 . Projectiles . | . . . . . . . . . Explosions 9 | . . . . . 9 . . . Melee 689 | . . . . . 154 256 279 . Knockbacks 3 | . . . . . . 2 1 . Impact 3 | . . . . . . 2 1 . Kinetic . | . . . . . . . . . Secondary . | . . . . . . . . . Self-Inflicted Damage . | . . . . . . . . . Shots . | . . . . . . . . . Rammed 1 | . . . 1 . . . . . Targets Rammed 1 | . . . 1 . . . . . Kicked . | . . . . . . . . . Crushed . | . . . . . . . . . Highest Temperature 21 | 15 . 13 . 21 20 . . . Average Temperature 9 | 10 . 7 . 6 12 . . . Received Heat Transfer 522 | . 6 60 . 54 147 9 174 72 Siege Activations . | . . . . . . . . . Robots Corrupted . | . . . . . . . . . Combat Hostiles . | . . . . . . . . . Parts Fried 15 | . . . . . . 11 4 . Impact Corruptions 17 | . . . . . . 8 9 . Robots Melted . | . . . . . . . . . Combat Hostiles . | . . . . . . . . . Parts Melted . | . . . . . . . . . Heat Transferred 225 | 100 . 75 50 . . . . . Parts Sabotaged . | . . . . . . . . . Parts Stolen . | . . . . . . . . . Parts Stripped . | . . . . . . . . . Power Chain Reactions . | . . . . . . . . . Missiles Intercepted . | . . . . . . . . . Alert | -11 -10 -9 -9 -8 -7 -6 -6 -6 ------- Run | Scr Mat Mat Min Mat Fac Fac Ext Cet Peak Influence 1009 | 10 97 127 89 424 1009 591 349 149 Initial 494 | . 6 40 49 34 192 494 289 128 Average 282 | 3 49 93 58 220 536 504 238 129 Maximum Alert Level 3 | . . . . 2 3 2 1 . Low Security (%) 42 | 100 100 100 100 41 . . 37 100 Level 1 36 | . . . . 57 35 . 62 . Level 2 15 | . . . . 1 38 100 . . Level 3 5 | . . . . . 25 . . . Level 4 . | . . . . . . . . . Level 5 . | . . . . . . . . . High Security . | . . . . . . . . . Max Security . | . . . . . . . . . Squads Dispatched 13 | . 2 1 . 1 5 2 1 1 Investigation 10 | . 2 . . . 5 2 . 1 Extermination . | . . . . . . . . . Reinforcement 3 | . . 1 . 1 . . 1 . Assault . | . . . . . . . . . Garrison . | . . . . . . . . . Intercept . | . . . . . . . . . Searches Triggered . | . . . . . . . . . Construction Impeded . | . . . . . . . . . Haulers Reinforced . | . . . . . . . . . Active Scanning Responses . | . . . . . . . . . Cargo Convoy Interrupts . | . . . . . . . . . Stealth | -11 -10 -9 -9 -8 -7 -6 -6 -6 --------- Run | Scr Mat Mat Min Mat Fac Fac Ext Cet Distress Signals 7 | . 1 2 . 1 1 . . 2 Communications Jammed . | . . . . . . . . . Distress Signals . | . . . . . . . . . Times Spotted 128 | . 4 13 6 23 34 8 27 13 Peak Tracking Total 16 | . 3 11 3 8 16 6 13 13 Tactical Retreats 24 | . . . . 5 13 1 5 . Traps | -11 -10 -9 -9 -8 -7 -6 -6 -6 ------- Run | Scr Mat Mat Min Mat Fac Fac Ext Cet Traps Triggered 2 | . 1 . . . . 1 . . Indirectly . | . . . . . . . . . Trap Hack Attempts . | . . . . . . . . . Triggered . | . . . . . . . . . Disarmed . | . . . . . . . . . Reprogrammed . | . . . . . . . . . Reused . | . . . . . . . . . Traps Extracted . | . . . . . . . . . Installed . | . . . . . . . . . Triggered . | . . . . . . . . . Machines | -11 -10 -9 -9 -8 -7 -6 -6 -6 ---------- Run | Scr Mat Mat Min Mat Fac Fac Ext Cet Machines Disabled 1 | . . . . . 1 . . . Max in Single Turn 1 | . . . . . 1 . . . Garrison Access 1 | . . . . . 1 . . . Machines Sabotaged . | . . . . . . . . . Garrisons Compromised . | . . . . . . . . . Overloaded Fab Kills . | . . . . . . . . . Hacking | -11 -10 -9 -9 -8 -7 -6 -6 -6 --------- Run | Scr Mat Mat Min Mat Fac Fac Ext Cet Machines Accessed 30 | . 5 3 . 3 9 4 3 3 Terminals 19 | . 3 3 . 3 3 1 3 3 Fabricators 3 | . . . . . 2 1 . . Repair Stations . | . . . . . . . . . Recycling Units 6 | . 2 . . . 3 1 . . Scanalyzers . | . . . . . . . . . Garrison Access 2 | . . . . . 1 1 . . Total Hacks 51 | . 9 7 . 3 12 9 3 8 Successful 24 | . 5 2 . 3 7 4 . 3 Failed 27 | . 4 5 . . 5 5 3 5 Catastrophic 7 | . . 1 . . 2 . 2 2 Database Lockouts . | . . . . . . . . . Manual 32 | . 10 4 . 1 9 6 2 . Terminals 38 | . 7 7 . 3 5 5 3 8 Fabricators 3 | . . . . . 2 1 . . Repair Stations . | . . . . . . . . . Recycling Units 6 | . 2 . . . 3 1 . . Scanalyzers . | . . . . . . . . . Garrison Access 4 | . . . . . 2 2 . . Terminal Hacks 11 | . . 2 . 3 1 2 . 3 Record 3 | . . . . . . . . 3 Level Access Points 2 | . . . . 1 1 . . . Branch Access Points 1 | . . . . . . 1 . . Terminal Index 1 | . . 1 . . . . . . Unreport Threat 1 | . . . . . . 1 . . Zone Layout 3 | . . 1 . 2 . . . . Fabricator Hacks . | . . . . . . . . . Repair Station Hacks . | . . . . . . . . . Recycling Unit Hacks . | . . . . . . . . . Scanalyzer . | . . . . . . . . . Garrison Access Hacks 1 | . . . . . 1 . . . Seal Access 1 | . . . . . 1 . . . Unauthorized Hacks 12 | . 5 . . . 5 2 . . Terminals 3 | . 3 . . . . . . . Assimilate 1 | . 1 . . . . . . . Botnet 2 | . 2 . . . . . . . Fabricators 3 | . . . . . 2 1 . . Download 3 | . . . . . 2 1 . . Repair Stations . | . . . . . . . . . Recycling Units 6 | . 2 . . . 3 1 . . Tunnel 6 | . 2 . . . 3 1 . . Scanalyzers . | . . . . . . . . . Garrison Access . | . . . . . . . . . Data Cores Recovered . | . . . . . . . . . Used . | . . . . . . . . . Hacking Detections 17 | . 3 3 . . 3 2 3 3 Full Trace Events 1 | . . . . . . . . 1 Feedback Events . | . . . . . . . . . Feedback Blocked . | . . . . . . . . . Robot Schematics Acquired 1 | . . . . . 1 . . . Robots Built . | . . . . . . . . . Authchips . | . . . . . . . . . Time . | . . . . . . . . . Total Robot Build Rating . | . . . . . . . . . Part Schematics Acquired 2 | . . . . . 1 1 . . Parts Built . | . . . . . . . . . Authchips . | . . . . . . . . . Time . | . . . . . . . . . Total Part Build Rating . | . . . . . . . . . Parts Repaired . | . . . . . . . . . Time . | . . . . . . . . . Parts Recycled . | . . . . . . . . . Recycled Matter . | . . . . . . . . . Retrieved Matter . | . . . . . . . . . Retrieved Components . | . . . . . . . . . Parts Scanalyzed . | . . . . . . . . . Part Schematics Acquired . | . . . . . . . . . Parts Damaged . | . . . . . . . . . Bothacking | -11 -10 -9 -9 -8 -7 -6 -6 -6 ------------ Run | Scr Mat Mat Min Mat Fac Fac Ext Cet Used RIF Installer . | . . . . . . . . . Robots Hacked . | . . . . . . . . . Non-combat . | . . . . . . . . . Combat . | . . . . . . . . . Robot Hacks Applied . | . . . . . . . . . Relay Couplers Released . | . . . . . . . . . Fabnet Peak Effective % . | . . . . . . . . . Robots Rewired . | . . . . . . . . . Allies Hacked . | . . . . . . . . . Hacks Repelled . | . . . . . . . . . Allies | -11 -10 -9 -9 -8 -7 -6 -6 -6 -------- Run | Scr Mat Mat Min Mat Fac Fac Ext Cet Total Allies 1 | . 1 . . . . . . . Largest Group 1 | . 1 . . . . . . . Highest-Rated Group 10 | . 10 . . . . . . . Highest-Rated Ally 10 | . 10 . . . . . . . Total Orders . | . . . . . . . . . Ally Attacks . | . . . . . . . . . Total Damage . | . . . . . . . . . Kills . | . . . . . . . . . Allies Corrupted . | . . . . . . . . . Allies Melted . | . . . . . . . . . Intel | -11 -10 -9 -9 -8 -7 -6 -6 -6 ------- Run | Scr Mat Mat Min Mat Fac Fac Ext Cet Robot Analysis Total . | . . . . . . . . . Derelict Logs Recovered 1 | . . . 1 . . . . . Drone Launches . | . . . . . . . . . Drone Recoveries . | . . . . . . . . . Exploration | -11 -10 -9 -9 -8 -7 -6 -6 -6 ------------- Run | Scr Mat Mat Min Mat Fac Fac Ext Cet Turns Passed 2896 | 67 79 218 277 153 660 198 1179 65 Spaces Moved 3601 | 66 159 251 260 226 1441 350 733 115 Core 768 | 66 69 . . . . 11 507 115 Treads 2 | . . . 2 . . . . . Legs . | . . . . . . . . . Wheels . | . . . . . . . . . Hover 226 | . . . . . . . 226 . Flight 2605 | . 90 251 258 226 1441 339 . . Fastest Speed 24 | 50 40 80 54 29 24 32 50 50 Average Speed 45 | 50 44 80 74 35 31 34 56 50 Slowest Speed 195 | 50 50 80 160 60 195 100 100 50 Overloaded Moves . | . . . . . . . . . Propulsion Burnouts . | . . . . . . . . . Robots Hopped 20 | . . . 1 1 16 2 . . Cave-ins Triggered . | . . . . . . . . . Exploration Rate (%) 37 | 3 46 39 52 23 40 10 56 66 Regions Visited 8 Branch Regions 3 Pre-discovered Areas 6 | . 2 . . . 3 1 . . Known Exits Taken 7 | . 1 1 1 1 1 1 1 . Unknown Exits Taken 1 | 1 . . . . . . . . Scrap Searched 1 | . . . 1 . . . . . Spaces Dug 10 | . . . . . 1 9 . . Terrain Destroyed 38 | . . . . 5 24 9 . . Melee 10 | . . . . . 1 9 . . Projectile . | . . . . . . . . . AOE 28 | . . . . 5 23 . . . Terrain Rammed . | . . . . . . . . . Walls Destroyed . | . . . . . . . . . Machines Disabled . | . . . . . . . . . Actions | -11 -10 -9 -9 -8 -7 -6 -6 -6 --------- Run | Scr Mat Mat Min Mat Fac Fac Ext Cet Total 4705 | 85 166 259 334 266 1605 398 1470 122 Wait 915 | . 1 . 61 11 127 15 696 4 Move 3555 | 65 158 250 257 223 1409 346 732 115 Hop 18 | . . . 1 1 15 1 . . Pick Up 35 | 9 1 2 3 3 7 3 7 . Fast Attach 22 | . 3 . 1 5 8 4 1 . Attach 34 | 4 . 3 3 2 6 4 9 3 Detach 8 | . . . . . 2 3 3 . Swap 6 | . . . . 2 4 . . . Drop 27 | . 3 . 3 2 10 5 4 . Fire 37 | 7 . 4 4 17 5 . . . Melee 47 | . . . . . 12 17 18 . Ram . | . . . . . . . . . Kick . | . . . . . . . . . Crush 1 | . . . 1 . . . . . Escape Stasis . | . . . . . . . . . Rewire . | . . . . . . . . . Trap . | . . . . . . . . . Miscellaneous . | . . . . . . . . . Route ------- -11/Scrapyard -10/Materials -9/Materials -9/Mines -8/Materials (discovered 3 exits: *Fac x3) -7/Factory (discovered 4 exits: *Fac x4) -6/Factory (discovered 5 exits: *Fac / Low x2 / *Ext x2) -6/Extension (discovered 2 exits: *Fac / *Cet) -6/Cetus (discovered 1 exit: [*Arc]) History --------- Turn | Location | Event 14 | -11/Scrapyard | Discovered new exit (range 14) 68 | -11/Scrapyard | Entered Materials 136 | -10/Materials | Discovered new exit (range 8) 146 | -10/Materials | Identified exit to Materials 147 | -10/Materials | Entered another Materials area 147 | -9/Materials | Evolved 2 slots: Propulsion x2 304 | -9/Materials | Build established: Mutant 358 | -9/Materials | Discovered new exit (range 9) 364 | -9/Materials | Identified exit to Mines 365 | -9/Materials | Entered Mines 367 | -9/Mines | Met a Derelict bent on vengeance 422 | -9/Mines | Learned Materials terminal intel 640 | -9/Mines | Discovered new exit (range 5) 642 | -9/Mines | Identified exit to Materials 642 | -9/Mines | Entered Materials 642 | -8/Materials | Evolved 2 slots: Utility x2 643 | -8/Materials | Loaded intel: 12 terminal locations 777 | -8/Materials | Identified exit to Factory 795 | -8/Materials | Entered Factory 795 | -7/Factory | Evolved 2 slots: Propulsion x2 821 | -7/Factory | Found Prototype Launcher 883 | -7/Factory | Identified Rocket Array 1001 | -7/Factory | Build established: Scavenger-Sprinter 1343 | -7/Factory | Identified exit to Factory 1352 | -7/Factory | Lost 3 parts (1p2n) 1434 | -7/Factory | Found Rocket Array 1455 | -7/Factory | Entered another Factory area 1455 | -6/Factory | Evolved 2 slots: Utility x2 1511 | -6/Factory | Found Prototype Launcher 1512 | -6/Factory | Identified Scatter Rocket Array 1520 | -6/Factory | Identified exit to Lower Caves 1520 | -6/Factory | Identified exit to Extension 1535 | -6/Factory | Discovered new exit (range 2) 1535 | -6/Factory | Identified exit to Factory 1653 | -6/Factory | Entered Extension 1783 | -6/Extension | Spotted B-75 Beast 1892 | -6/Extension | Build established: Hacker-Mutant 2728 | -6/Extension | Disrupted transfer network 2776 | -6/Extension | Spotted B-75 Beast 2824 | -6/Extension | Lost 5 parts (1p3n1u) 2825 | -6/Extension | Discovered exit to Factory (range 16) 2825 | -6/Extension | Discovered new exit (range 16) 2832 | -6/Extension | Identified exit to Cetus 2832 | -6/Extension | Entered Cetus 2840 | -6/Cetus | Spotted Cetus Guard 2840 | -6/Cetus | Spotted Cetus Guard 2840 | -6/Cetus | Spotted Cetus Guard 2842 | -6/Cetus | Core integrity fell below 50% 2844 | -6/Cetus | Spotted Cetus Guard 2878 | -6/Cetus | Core integrity fell below 20% 2886 | -6/Cetus | Discovered new exit (range 18) 2895 | -6/Cetus | Spotted Cetus Guard 2896 | -6/Cetus | Spotted Cetus Guard 2896 | -6/Cetus | Spotted Cetus Guard 2896 | -6/Cetus | Spotted Cetus Guard 2897 | -6/Cetus | Destroyed by Cetus Guard with Advanced KE Penetrator Last Messages --------------- only after long-term execution. A single copy of each previous revision is stored in the [Cetus Mainframe] for research and analysis. Most revisions have been allowed to continue to remain aware, though in isolation from all external stimuli except in controlled experiments. 02872_ Slug penetrates Machine. 02872_ Machine disabled. 02873_ Slug penetrates Reinforced Barrier. 02873_ Machine disabled. 02874_ Slug penetrates Machine. 02874_ Machine disabled. 02876_ Penetrated by Slug. 02876_ Connecting with Cetus Terminal... 02876_ ALERT: Suspicious activity at Terminal C004. Dispatching Investigation squad. 02876_ Penetrated by Slug. 02879_ Connecting with Cetus Manufacturing Controls... 02879_ Penetrated by Slug. 02886_ EXIT=FOUND 02895_ W-25 Informer sends out distress signal. 02897_ Penetrated by Slug. Map ----- +----------------------------------------------------+ | ?????????????????????????????????????????? | | ?????????????????????????????????????????? | | ?????????????????????????????????????????? | | ?????????????????????????????????????????? | | ?????????????????????????????????????????? | | ?????????????????????????????????????????? | | ?????????????????????????????????????????? | | ?????????????????????????????????????????? | | ???????????????????????# #?????????????? | | ??????????????????????? ?????????????? | | ???????????????????????Y Y?????????????? | | ??????????????????????? ?????????????? | | ???????????????????????#Y Y#?????????????? | | ???????????????????????# w #?????????????? | | ???????????????????????# #?????????????? | | ???????????????????????# #?????????????? | | ???????????????????????# #?????????????? | | ???????????????????????# #?????????????? | | ???????????????????????# #?????????????? | | ???????????????????????# #?????????????? | | ???????????????????????# #?????????????? | | ???????????????????????# #?????????????? | | ???????????????????????# #?????????????? | | ???????????????????????# #?????????????? | | ???????????????????????# #?????????????? | | ???????????????????????# @ #?????????????? | | ???????????????????????# #?????????????? | | ???????????????????????# #?????????????? | | ???????????????????????# #?????????????? | | ???????????????????????# #?????????????? | | ???????????????????????# #?????????????? | | ???????????????????????# #?????????????? | | ?????##????????????????# #?????????????? | | "????#"????????????????# #?????????????? | | """""#"######??????????# #?????????????? | | """""#""""""#??????????# #?????????????? | | """""#" ""#??????????# #?????????????? | | " """#T "#??????????# #?????????????? | | """ "# #??????????# g#?????????????? | | ############ g ######????????? | | + g #???? | | + < #???? | | + #???? | | ##########################???? | | """" "#T #????????????????????????????? | | #########"""#????????????????????????????? | | "#???????????????????????????????????????? | | "#???????????????????????????????????????? | | "#???????????????????????????????????????? | | "#???????????????????????????????????????? | +----------------------------------------------------+ Best States ------------- Heat Dissipation 37 Energy Generation 14 Energy Capacity 140 Matter Stores 300 Matter Capacity 300 Sight Range 18 Robot Scan Range 15 Terrain Scan Density 10 Power Amplification 20 Evasion (%) 64 Targeting Accuracy 6 Melee Accuracy 6 Launcher Accuracy 40 Offensive Hacking 10 Defensive Hacking 10 Item Schematics ----------------- System Guard | -7/Factory | Downloaded Adv. Signal Interpreter | -6/Factory | Downloaded Robot Schematics ------------------ G-47 Trooper | -7/Factory | Downloaded Fabricated ------------ Nothing Alien Tech Used ----------------- None Achievements -------------- Party Time True Hacker Challenges ------------ None Game ------ Seed VortexInsulationLeg Manual? 0 Play Time 01:19:05 Cumulative 35.9 hours Start 2022.08.16 @ 13:16:56 End 2022.08.16 @ 14:40:56 Sessions 1 Manual Loads 0 Difficulty Rogue Special Mode None Game No. 19 Rogue 17 Adventurer 2 Explorer 0 Win Type - Total 0 Types 0/0/0/0/0/0/0/0/0 Lore% 33 Gallery% 28 Achievement% 31 Wizard Run 0 Options --------- ASCII 0 Keyboard 0 Movement Mouse Keybinds 0 Fullscreen 1 Font 24/Smallcaps Map View 76x50 Tactical HUD 1 Map Filters NONE Filters NONE Steam 1 RUN: 759f0940-4006-4a63-8df6-59bd5940482e